fUST/lending_fUST_20251212
["ID","MTS","AMOUNT","RATE_DAILY","PERIOD"]
[398282883,1765489860656,-250.858249,0.0001315,2]
[398282884,1765489860665,-553.61,0.0001315,2]
[398282885,1765489860675,-500.0,0.0001315,2]
[398282886,1765489860684,-500.0,0.0001315,2]
[398282887,1765489860693,-500.0,0.0001315,2]
[398282888,1765489860703,-500.0,0.0001315,2]
[398282889,1765489860712,-500.0,0.0001315,2]
[398282890,1765489860722,-612.83,0.0001315,2]
[398282891,1765489860731,-3389.56,0.0001315,2]
[398282892,1765489860741,-1457.958514,0.0001315,2]
[398282893,1765489860750,-1457.958514,0.0001315,2]
[398282894,1765489860759,-500.0,0.0001315,2]
[398282895,1765489860769,-540.19,0.0001315,2]
[398282896,1765489860778,-1000.89,0.0001315,2]
[398282897,1765489860787,-1457.958514,0.0001315,2]
[398282898,1765489860796,-1457.958514,0.0001315,2]
[398282899,1765489860805,-913.35,0.0001315,2]
[398282900,1765489860814,-638.16841744,0.0001315,2]
[398282901,1765489860824,-662.26,0.0001315,2]
[398282902,1765489860833,-500.0,0.0001315,2]
[398282903,1765489860845,-500.0,0.0001315,2]
[398282904,1765489860854,-527.85,0.0001315,2]
[398282905,1765489860864,-641.07,0.0001315,2]
[398282906,1765489860874,-901.81,0.0001315,2]
[398282907,1765489860883,-151.0,0.0001315,2]
[398282908,1765489860893,-151.0,0.0001315,2]
[398282909,1765489860903,-151.0,0.0001315,2]
[398282910,1765489860912,-151.0,0.0001315,2]
[398282911,1765489860922,-151.0,0.0001315,2]
[398282912,1765489860931,-291.368662,0.0001315,2]
[398282913,1765489860941,-151.0,0.0001315,2]
[398282914,1765489860950,-500.0,0.0001315,2]
[398282915,1765489860960,-151.0,0.0001315,2]
[398282916,1765489860969,-500.0,0.0001315,2]
[398282917,1765489860979,-151.0,0.0001315,2]
[398282918,1765489860989,-500.0,0.0001315,2]
[398282919,1765489860998,-655.9,0.0001315,2]
[398282920,1765489861009,-500.0,0.0001315,2]
[398282921,1765489861018,-500.0,0.0001315,2]
[398282922,1765489861028,-500.0,0.0001315,2]
[398282923,1765489861038,-500.0,0.0001315,2]
[398282924,1765489861047,-201.571517,0.0001315,2]
[398282925,1765489861056,-819.61,0.0001315,2]
[398282926,1765489861065,-201.571517,0.0001315,2]
[398282927,1765489861075,-201.571517,0.0001315,2]
[398282928,1765489861086,-201.571517,0.0001315,2]
[398282929,1765489861095,-201.571517,0.0001315,2]
[398282930,1765489861103,-500.0,0.0001315,2]
[398282931,1765489861113,-201.571517,0.0001315,2]
[398282932,1765489861123,-201.571517,0.0001315,2]
[398282933,1765489861132,-201.571517,0.0001315,2]
[398282934,1765489861141,-1075.3,0.0001315,2]
[398282935,1765489861151,-500.0,0.0001315,2]
[398282936,1765489861160,-500.0,0.0001315,2]
[398282937,1765489861169,-2592.23,0.0001315,2]
[398282938,1765489861179,-500.0,0.0001315,2]
[398282939,1765489861187,-500.0,0.0001315,2]
[398282940,1765489861197,-678.26,0.0001315,2]
[398282941,1765489861206,-500.0,0.0001315,2]
[398282942,1765489861215,-3831.89,0.0001315,2]
[398282943,1765489861225,-500.0,0.0001315,2]
[398282944,1765489861234,-500.0,0.0001315,2]
[398282945,1765489861243,-1214.42,0.0001315,2]
[398282946,1765489861254,-500.0,0.0001315,2]
[398282947,1765489861265,-615.93,0.0001315,2]
[398282948,1765489861275,-151.0,0.0001315,2]
[398282949,1765489861284,-500.0,0.0001315,2]
[398282950,1765489861295,-877.07,0.0001315,2]
[398282951,1765489861306,-500.0,0.0001315,2]
[398282952,1765489861315,-156.317402,0.0001315,2]
[398282953,1765489861325,-601.55,0.0001315,2]
[398282954,1765489861337,-500.0,0.0001315,2]
[398282955,1765489861346,-156.317402,0.0001315,2]
[398282956,1765489861355,-156.317402,0.0001315,2]
[398282957,1765489861364,-156.317402,0.0001315,2]
[398282958,1765489861374,-500.0,0.0001315,2]
[398282959,1765489861383,-500.0,0.0001315,2]
[398282960,1765489861393,-500.0,0.0001315,2]
[398282961,1765489861402,-1482.41,0.0001315,2]
[398282962,1765489861412,-500.0,0.0001315,2]
[398282963,1765489861421,-1020.83,0.0001315,2]
[398282964,1765489861431,-151.0,0.0001315,2]
[398282965,1765489861440,-587.75,0.0001315,2]
[398282966,1765489861450,-500.0,0.0001315,2]
[398282967,1765489861459,-617.23,0.0001315,2]
[398282968,1765489861468,-500.0,0.0001315,2]
[398282969,1765489861477,-500.0,0.0001315,2]
[398282970,1765489861486,-500.0,0.0001315,2]
[398282971,1765489861495,-896.71,0.0001315,2]
[398282972,1765489861505,-888.0,0.0001315,2]
[398282973,1765489861514,-500.0,0.0001315,2]
[398282974,1765489861524,-209.41542477,0.0001315,2]
[398282975,1765489861533,-1019.85,0.0001315,2]
[398282976,1765489861543,-151.0,0.0001315,2]
[398282977,1765489861553,-151.0,0.0001315,2]
[398282978,1765489861562,-500.0,0.0001315,2]
[398282979,1765489861572,-500.0,0.0001315,2]
[398282980,1765489861582,-151.0,0.0001315,2]
[398282981,1765489861591,-5495.15,0.0001315,2]
[398282982,1765489861602,-151.0,0.0001315,2]
[398282983,1765489861611,-7226.62,0.0001315,2]
[398282984,1765489861620,-2033.78,0.0001315,2]
[398282985,1765489861630,-1027.39,0.0001315,2]
[398282986,1765489861640,-500.0,0.0001315,2]
[398282987,1765489861649,-9424.02,0.0001315,2]
[398282988,1765489861659,-500.0,0.0001315,2]
[398282989,1765489861668,-500.0,0.0001315,2]
[398282990,1765489861677,-500.0,0.0001315,2]
[398282991,1765489861687,-500.0,0.0001315,2]
[398282992,1765489861696,-500.0,0.0001315,2]
[398282993,1765489861705,-500.0,0.0001315,2]
[398282994,1765489861715,-500.0,0.0001315,2]
[398282995,1765489861724,-500.0,0.0001315,2]
[398282996,1765489861733,-542.13,0.0001315,2]
[398282997,1765489861743,-1140.8,0.0001315,2]
[398282998,1765489861752,-500.0,0.0001315,2]
[398282999,1765489861762,-500.0,0.0001315,2]
[398283000,1765489861771,-500.0,0.0001315,2]
[398283001,1765489861781,-847.27,0.0001315,2]
[398283002,1765489861791,-839.45,0.0001315,2]
[398283003,1765489861800,-500.0,0.0001315,2]
[398283004,1765489861809,-500.0,0.0001315,2]
[398283005,1765489861818,-500.0,0.0001315,2]
[398283006,1765489861827,-500.0,0.0001315,2]
[398283007,1765489861838,-623.1,0.0001315,2]
[398283008,1765489861848,-4506.89,0.0001315,2]
[398283009,1765489861858,-1042.57,0.0001315,2]
[398283010,1765489861868,-500.0,0.0001315,2]
[398283011,1765489861877,-500.0,0.0001315,2]
[398283012,1765489861888,-500.0,0.0001315,2]
[398283013,1765489861898,-710.27,0.0001315,2]
[398283014,1765489861908,-1080.54,0.0001315,2]
[398283015,1765489861918,-500.0,0.0001315,2]
[398283016,1765489861927,-825.98,0.0001315,2]
[398283017,1765489861938,-897.94,0.0001315,2]
[398283018,1765489861948,-500.0,0.0001315,2]
[398283019,1765489861957,-520.94009992,0.0001315,2]
[398283020,1765489861967,-500.0,0.0001315,2]
[398283021,1765489861977,-500.0,0.0001315,2]
[398283022,1765489861987,-500.0,0.0001315,2]
[398283023,1765489861996,-500.0,0.0001315,2]
[398283024,1765489862006,-500.0,0.0001315,2]
[398283025,1765489862016,-500.0,0.0001315,2]
[398283026,1765489862026,-500.0,0.0001315,2]
[398283027,1765489862036,-4350.62,0.0001315,2]
[398283028,1765489862046,-500.0,0.0001315,2]
[398283029,1765489862055,-2944.68,0.0001315,2]
[398283030,1765489862064,-1392.46,0.0001315,2]
[398283031,1765489862074,-500.0,0.0001315,2]
[398283032,1765489862083,-3670.98,0.0001315,2]
[398283033,1765489862093,-500.0,0.0001315,2]
[398283034,1765489862102,-730.23,0.0001315,2]
[398283035,1765489862111,-839.36,0.0001315,2]
[398283036,1765489862121,-500.0,0.0001315,2]
[398283037,1765489862130,-943.39,0.0001315,2]
[398283038,1765489862139,-500.0,0.0001315,2]
[398283039,1765489862148,-500.0,0.0001315,2]
[398283040,1765489862158,-500.0,0.0001315,2]
[398283041,1765489862167,-1202.4,0.0001315,2]
[398283042,1765489862176,-3556.16,0.0001315,2]
[398283043,1765489862187,-500.0,0.0001315,2]
[398283044,1765489862196,-1371.92,0.0001315,2]
[398283045,1765489862206,-900.54,0.0001315,2]
[398283046,1765489862216,-5867.83,0.0001315,2]
[398283047,1765489862226,-500.0,0.0001315,2]
[398283048,1765489862236,-500.0,0.0001315,2]
[398283049,1765489862246,-6262.15,0.0001315,2]
[398283050,1765489862258,-436.34381408,0.0001315,2]
[398283051,1765489862269,-1792.97,0.0001315,2]
[398283052,1765489862279,-500.0,0.0001315,2]
[398283053,1765489862289,-500.0,0.0001315,2]
[398283054,1765489862302,-2439.42,0.0001315,2]
[398283055,1765489862311,-18661.2,0.0001315,2]
[398283056,1765489862321,-7013.3,0.0001315,2]
[398283057,1765489862332,-4257.81,0.0001315,2]
[398283058,1765489862342,-500.0,0.0001315,2]
[398283059,1765489862352,-500.0,0.0001315,2]
[398283060,1765489862362,-1610.71,0.0001315,2]
[398283061,1765489862372,-500.0,0.0001315,2]
[398283062,1765489862382,-4228.67,0.0001315,2]
[398283063,1765489862392,-500.0,0.0001315,2]
[398283064,1765489862401,-10728.74,0.0001315,2]
[398283065,1765489862411,-500.0,0.0001315,2]
[398283066,1765489862421,-1725.14,0.0001315,2]
[398283067,1765489862431,-674.9,0.0001315,2]
[398283068,1765489862441,-643.17,0.0001315,2]
[398283069,1765489862451,-500.0,0.0001315,2]
[398283070,1765489862461,-500.0,0.0001315,2]
[398283071,1765489862471,-500.0,0.0001315,2]
[398283072,1765489862480,-282.19163032,0.0001315,2]
[398283073,1765489862490,-500.0,0.0001315,2]
[398283074,1765489862499,-500.0,0.0001315,2]
[398283075,1765489862509,-1740.3,0.0001315,2]
[398283076,1765489862519,-3293.63,0.0001315,2]
[398283077,1765489862529,-500.0,0.0001315,2]
[398283078,1765489862538,-500.0,0.0001315,2]
[398283079,1765489862548,-500.0,0.0001315,2]
[398283080,1765489862558,-1121.75,0.0001315,2]
[398283081,1765489862568,-500.0,0.0001315,2]
[398283082,1765489862578,-500.0,0.0001315,2]
[398283083,1765489862588,-500.0,0.0001315,2]
[398283084,1765489862598,-500.0,0.0001315,2]
[398283085,1765489862608,-1139.76,0.0001315,2]
[398283086,1765489862617,-974.71,0.0001315,2]
[398283087,1765489862627,-6816.34,0.0001315,2]
[398283088,1765489862636,-3052.85,0.0001315,2]
[398283089,1765489862646,-500.0,0.0001315,2]
[398283090,1765489862655,-500.0,0.0001315,2]
[398283091,1765489862665,-1433.58,0.0001315,2]
[398283092,1765489862674,-500.0,0.0001315,2]
[398283093,1765489862684,-590.05,0.0001315,2]
[398283094,1765489862693,-500.0,0.0001315,2]
[398283095,1765489862702,-1468.83,0.0001315,2]
[398283096,1765489862712,-3391.64,0.0001315,2]
[398283097,1765489862722,-500.0,0.0001315,2]
[398283098,1765489862731,-500.0,0.0001315,2]
[398283099,1765489862740,-4745.9,0.0001315,2]
[398283100,1765489862750,-1916.99,0.0001315,2]
[398283101,1765489862760,-500.0,0.0001315,2]
[398283102,1765489862770,-522.94,0.0001315,2]
[398283103,1765489862779,-500.0,0.0001315,2]
[398283104,1765489862789,-22256.73,0.0001315,2]
[398283105,1765489862798,-694.02,0.0001315,2]
[398283106,1765489862808,-506.24,0.0001315,2]
[398283107,1765489862818,-270.7382492,0.0001315,2]
[398283108,1765489862827,-857.42,0.0001315,2]
[398283109,1765489862839,-500.0,0.0001315,2]
[398283110,1765489862848,-659.66,0.0001315,2]
[398283111,1765489862858,-677.79,0.0001315,2]
[398283112,1765489862869,-1051.59,0.0001315,2]
[398283113,1765489862878,-10513.24,0.0001315,2]
[398283114,1765489862888,-500.0,0.0001315,2]
[398283115,1765489862898,-500.0,0.0001315,2]
[398283116,1765489862907,-500.0,0.0001315,2]
[398283117,1765489862917,-767.49,0.0001315,2]
[398283118,1765489862927,-636.41,0.0001315,2]
[398283119,1765489862937,-500.0,0.0001315,2]
[398283120,1765489862947,-500.0,0.0001315,2]
[398283121,1765489862956,-566.8,0.0001315,2]
[398283122,1765489862966,-263.80328105,0.0001315,2]
[398283123,1765489862976,-436.79639259,0.0001315,2]
[398283124,1765489862985,-500.0,0.0001315,2]
[398283125,1765489862995,-947.25,0.0001315,2]
[398283126,1765489863004,-500.0,0.0001315,2]
[398283127,1765489863015,-541.53,0.0001315,2]
[398283128,1765489863025,-500.0,0.0001315,2]
[398283129,1765489863035,-2913.61,0.0001315,2]
[398283130,1765489863045,-762.33,0.0001315,2]
[398283131,1765489863054,-500.0,0.0001315,2]
[398283132,1765489863064,-5315.23,0.0001315,2]
[398283133,1765489863073,-1789.45,0.0001315,2]
[398283134,1765489863083,-500.0,0.0001315,2]
[398283135,1765489863093,-367.24152785,0.00013151,2]
[398283136,1765489863103,-500.0,0.00013192,2]
[398283137,1765489863112,-202.26689051,0.00013273,2]
[398283138,1765489863122,-535.2271945,0.00013273,2]
[398283139,1765489863132,-637.31142776,0.00013273,2]
[398283140,1765489863142,-503.4965111,0.00013273,2]
[398283141,1765489863152,-502.8769619,0.00013273,2]
[398283142,1765489863161,-500.0,0.00013273,2]
[398283143,1765489863171,-500.0,0.00013273,2]
[398283144,1765489863181,-500.0,0.00013273,2]
[398283145,1765489863191,-500.0,0.00013273,2]
[398283146,1765489863200,-504.46368631,0.00013273,2]
[398283147,1765489863211,-505.83490159,0.00013273,2]
[398283148,1765489863221,-500.0,0.00013273,2]
[398283149,1765489863230,-500.0,0.00013273,2]
[398283150,1765489863240,-500.0,0.00013273,2]
[398283151,1765489863250,-500.0,0.00013273,2]
[398283152,1765489863264,-500.0,0.00013273,2]
[398283153,1765489863274,-503.04752713,0.00013273,2]
[398283154,1765489863284,-500.0,0.00013273,2]
[398283155,1765489863294,-500.0,0.00013273,2]
[398283156,1765489863305,-500.0,0.00013273,2]
[398283157,1765489863315,-500.0,0.00013273,2]
[398283158,1765489863324,-500.0,0.00013273,2]
[398283159,1765489863337,-500.0,0.00013328,2]
[398283160,1765489863346,-4101.35385652,0.00013379,2]
[398283161,1765489863356,-1987.320537,0.00013424,2]
[398283162,1765489863366,-501.70351157,0.00013424,2]
[398283163,1765489863377,-500.0,0.00013424,2]
[398283164,1765489863387,-500.0,0.00013424,2]
[398283165,1765489863397,-500.0,0.00013424,2]
[398283166,1765489863408,-500.0,0.00013424,2]
[398283167,1765489863418,-500.0,0.00013424,2]
[398283168,1765489863428,-588.44563239,0.00013424,2]
[398283169,1765489863439,-500.0,0.00013424,2]
[398283170,1765489863449,-500.0,0.00013424,2]
[398283171,1765489863459,-500.0,0.00013424,2]
[398283172,1765489863470,-219.00667821,0.00013424,2]
[398283173,1765489863480,-766.52,0.00013424,2]
[398283174,1765489863490,-500.0,0.00013424,2]
[398283175,1765489863500,-500.0,0.00013424,2]
[398283176,1765489863511,-500.0,0.00013424,2]
[398283177,1765489863521,-500.0,0.00013424,2]
[398283178,1765489863532,-469.46811679,0.00013424,2]
[398283179,1765489863543,-500.0,0.00013424,2]
[398283180,1765489863552,-500.0,0.00013424,2]
[398283181,1765489863563,-500.0,0.00013424,2]
[398283182,1765489863573,-500.0,0.00013424,2]
[398283183,1765489863583,-824.08,0.00013424,2]
[398283184,1765489863593,-500.0,0.00013424,2]
[398283185,1765489863603,-500.0,0.00013424,2]
[398283186,1765489863613,-500.0,0.00013424,2]
[398283187,1765489863623,-500.0,0.00013424,2]
[398283188,1765489863633,-671.39,0.00013424,2]
[398283189,1765489863643,-500.0,0.00013424,2]
[398283190,1765489863653,-500.0,0.00013424,2]
[398283191,1765489863663,-500.0,0.00013424,2]
[398283192,1765489863673,-500.0,0.00013424,2]
[398283193,1765489863683,-500.0,0.00013424,2]
[398283194,1765489863692,-500.0,0.00013424,2]
[398283195,1765489863702,-500.0,0.00013424,2]
[398283196,1765489863711,-845.74,0.00013424,2]
[398283197,1765489863721,-600.58,0.00013424,2]
[398283198,1765489863730,-500.0,0.00013424,2]
[398283199,1765489863740,-500.0,0.00013424,2]
[398283200,1765489863750,-500.0,0.00013424,2]
[398283201,1765489863759,-500.0,0.00013424,2]
[398283202,1765489863769,-685.25,0.00013424,2]
[398283203,1765489863778,-589.79359466,0.00013424,2]
[398283204,1765489863787,-1009.18,0.00013424,2]
[398283205,1765489863797,-526.99443709,0.00013424,2]
[398283206,1765489863806,-500.0,0.00013424,2]
[398283207,1765489863816,-500.0,0.00013424,2]
[398283208,1765489863825,-780.65,0.00013424,2]
[398283209,1765489863835,-500.0,0.00013424,2]
[398283210,1765489863845,-602.77,0.00013424,2]
[398283211,1765489863854,-500.0,0.00013424,2]
[398283212,1765489863864,-609.01358558,0.00013424,2]
[398283213,1765489863873,-500.0,0.00013424,2]
[398283214,1765489863883,-500.0,0.00013424,2]
[398283215,1765489863892,-500.0,0.00013424,2]
[398283216,1765489863902,-500.0,0.00013424,2]
[398283217,1765489863911,-500.0,0.00013424,2]
[398283218,1765489863921,-500.0,0.00013424,2]
[398283219,1765489863931,-500.0,0.00013424,2]
[398283220,1765489864191,-500.0,0.00013424,2]
[398283221,1765489864202,-552.4,0.00013424,2]
[398283222,1765489864211,-500.0,0.00013424,2]
[398283223,1765489864220,-500.0,0.00013424,2]
[398283224,1765489864229,-500.0,0.00013424,2]
[398283225,1765489864239,-500.0,0.00013424,2]
[398283226,1765489864249,-500.0,0.00013424,2]
[398283227,1765489864262,-500.0,0.00013424,2]
[398283228,1765489864271,-500.0,0.00013424,2]
[398283229,1765489864280,-500.0,0.00013424,2]
[398283230,1765489864290,-500.0,0.00013424,2]
[398283231,1765489864301,-500.0,0.00013424,2]
[398283232,1765489864310,-500.0,0.00013424,2]
[398283233,1765489864319,-500.0,0.00013424,2]
[398283234,1765489864331,-500.0,0.00013424,2]
[398283235,1765489864341,-500.0,0.00013424,2]
[398283236,1765489864351,-500.0,0.00013424,2]
[398283237,1765489864361,-500.0,0.00013424,2]
[398283238,1765489864373,-500.0,0.00013424,2]
[398283239,1765489864382,-982.39,0.00013424,2]
[398283240,1765489864392,-500.0,0.00013424,2]
[398283241,1765489864402,-645.35,0.00013424,2]
[398283242,1765489864412,-1543.87,0.00013424,2]
[398283243,1765489864421,-500.0,0.00013424,2]
[398283244,1765489864431,-500.0,0.00013424,2]
[398283245,1765489864440,-192.32913074,0.00013424,2]
[398283246,1765489864449,-784.92,0.00013424,2]
[398283247,1765489864459,-500.0,0.00013424,2]
[398283248,1765489864469,-500.0,0.00013424,2]
[398283249,1765489864479,-500.0,0.00013424,2]
[398283250,1765489864488,-500.0,0.00013424,2]
[398283251,1765489864498,-500.0,0.00013424,2]
[398283252,1765489864507,-500.0,0.00013424,2]
[398283253,1765489864516,-500.0,0.00013424,2]
[398283254,1765489864526,-500.0,0.00013424,2]
[398283255,1765489864536,-582.76,0.00013424,2]
[398283256,1765489864545,-500.0,0.00013424,2]
[398283257,1765489864554,-500.0,0.00013424,2]
[398283258,1765489864564,-624.91,0.00013424,2]
[398283259,1765489864573,-500.0,0.00013424,2]
[398283260,1765489864583,-670.44,0.00013424,2]
[398283261,1765489864593,-500.0,0.00013424,2]
[398283262,1765489864602,-500.0,0.00013424,2]
[398283263,1765489864611,-500.0,0.00013424,2]
[398283264,1765489864621,-500.0,0.00013424,2]
[398283265,1765489864631,-500.0,0.00013424,2]
[398283266,1765489864640,-500.0,0.00013424,2]
[398283267,1765489864651,-500.0,0.00013424,2]
[398283268,1765489864661,-500.0,0.00013424,2]
[398283269,1765489864671,-500.0,0.00013424,2]
[398283270,1765489864680,-1555.29,0.00013424,2]
[398283271,1765489864689,-500.0,0.00013424,2]
[398283272,1765489864699,-500.0,0.00013424,2]
[398283273,1765489864708,-500.0,0.00013424,2]
[398283274,1765489864718,-500.0,0.00013424,2]
[398283275,1765489864727,-500.0,0.00013424,2]
[398283276,1765489864737,-693.0,0.00013424,2]
[398283277,1765489864746,-500.0,0.00013424,2]
[398283278,1765489864756,-500.0,0.00013424,2]
[398283279,1765489864765,-500.0,0.00013424,2]
[398283280,1765489864775,-500.0,0.00013424,2]
[398283281,1765489864784,-1036.17,0.00013424,2]
[398283282,1765489864793,-528.34,0.00013424,2]
[398283283,1765489864803,-500.0,0.00013424,2]
[398283284,1765489864814,-500.0,0.00013424,2]
[398283285,1765489864823,-500.0,0.00013424,2]
[398283286,1765489864832,-500.0,0.00013424,2]
[398283287,1765489864842,-672.81,0.00013424,2]
[398283288,1765489864852,-500.0,0.00013424,2]
[398283289,1765489864862,-500.0,0.00013424,2]
[398283290,1765489864871,-500.0,0.00013424,2]
[398283291,1765489864880,-500.0,0.00013424,2]
[398283292,1765489864890,-500.0,0.00013424,2]
[398283293,1765489864899,-694.4,0.00013424,2]
[398283294,1765489864908,-500.0,0.00013424,2]
[398283295,1765489864918,-175.35446051,0.00013424,2]
[398283296,1765489864927,-818.44,0.00013424,2]
[398283297,1765489864936,-3761.98,0.00013424,2]
[398283298,1765489864945,-500.0,0.00013424,2]
[398283299,1765489864955,-500.0,0.00013424,2]
[398283300,1765489864965,-559.40192831,0.00013424,2]
[398283301,1765489864974,-500.0,0.00013424,2]
[398283302,1765489864983,-500.0,0.00013424,2]
[398283303,1765489864992,-567.89,0.00013424,2]
[398283304,1765489865002,-500.0,0.00013424,2]
[398283305,1765489865011,-500.0,0.00013424,2]
[398283306,1765489865020,-500.0,0.00013424,2]
[398283307,1765489865030,-1236.06,0.00013424,2]
[398283308,1765489865040,-1134.94,0.00013424,2]
[398283309,1765489865049,-500.0,0.00013424,2]
[398283310,1765489865059,-601.17,0.00013424,2]
[398283311,1765489865068,-500.0,0.00013424,2]
[398283312,1765489865077,-574.53,0.00013424,2]
[398283313,1765489865086,-500.0,0.00013424,2]
[398283314,1765489865095,-1134.52,0.00013424,2]
[398283315,1765489865105,-500.0,0.00013424,2]
[398283316,1765489865115,-1675.61,0.00013424,2]
[398283317,1765489865125,-500.0,0.00013424,2]
[398283318,1765489865134,-500.0,0.00013424,2]
[398283319,1765489865143,-151.0,0.00013424,2]
[398283320,1765489865152,-500.0,0.00013424,2]
[398283321,1765489865162,-151.0,0.00013424,2]
[398283322,1765489865172,-271.837142,0.00013424,2]
[398283323,1765489865181,-176.279332,0.00013424,2]
[398283324,1765489865191,-500.0,0.00013424,2]
[398283325,1765489865200,-176.279332,0.00013424,2]
[398283326,1765489865209,-500.0,0.00013424,2]
[398283327,1765489865219,-176.279332,0.00013424,2]
[398283328,1765489865228,-176.279322,0.00013424,2]
[398283329,1765489865238,-704.48,0.00013424,2]
[398283330,1765489865247,-716.35,0.00013424,2]
[398283331,1765489865260,-500.0,0.00013424,2]
[398283332,1765489865270,-500.0,0.00013424,2]
[398283333,1765489865280,-254.376562,0.00013424,2]
[398283334,1765489865289,-254.376562,0.00013424,2]
[398283335,1765489865299,-864.1,0.00013424,2]
[398283336,1765489865309,-254.376562,0.00013424,2]
[398283337,1765489865318,-1367.11,0.00013424,2]
[398283338,1765489865329,-500.0,0.00013424,2]
[398283339,1765489865339,-254.376557,0.00013424,2]
[398283340,1765489865349,-500.0,0.00013424,2]
[398283341,1765489865359,-500.0,0.00013424,2]
[398283342,1765489865368,-3151.22,0.00013424,2]
[398283343,1765489865377,-547.33771064,0.00013424,2]
[398283344,1765489865387,-820.75,0.00013424,2]
[398283345,1765489865396,-1970.81,0.00013424,2]
[398283346,1765489865406,-2036.33,0.00013424,2]
[398283347,1765489865415,-521.52,0.00013424,2]
[398283348,1765489865425,-500.0,0.00013424,2]
[398283349,1765489865434,-500.0,0.00013424,2]
[398283350,1765489865444,-500.0,0.00013424,2]
[398283351,1765489865455,-154.732359,0.00013424,2]
[398283352,1765489865464,-154.732359,0.00013424,2]
[398283353,1765489865474,-500.0,0.00013424,2]
[398283354,1765489865484,-154.732359,0.00013424,2]
[398283355,1765489865494,-500.0,0.00013424,2]
[398283356,1765489865504,-154.732359,0.00013424,2]
[398283357,1765489865513,-500.0,0.00013424,2]
[398283358,1765489865522,-625.45,0.00013424,2]
[398283359,1765489865532,-500.0,0.00013424,2]
[398283360,1765489865541,-235.387151,0.00013424,2]
[398283361,1765489865551,-997.73,0.00013424,2]
[398283362,1765489865561,-215.670451,0.00013424,2]
[398283363,1765489865571,-975.69,0.00013424,2]
[398283364,1765489865581,-215.670451,0.00013424,2]
[398283365,1765489865591,-215.670451,0.00013424,2]
[398283366,1765489865601,-500.0,0.00013424,2]
[398283367,1765489865611,-175.05469,0.00013424,2]
[398283368,1765489865621,-545.77,0.00013424,2]
[398283369,1765489865630,-215.670457,0.00013424,2]
[398283370,1765489865639,-273.081053,0.00013424,2]
[398283371,1765489865649,-500.0,0.00013424,2]
[398283372,1765489865658,-500.0,0.00013424,2]
[398283373,1765489865668,-273.081053,0.00013424,2]
[398283374,1765489865677,-273.081053,0.00013424,2]
[398283375,1765489865687,-500.0,0.00013424,2]
[398283376,1765489865696,-500.0,0.00013424,2]
[398283377,1765489865705,-175.05469,0.00013424,2]
[398283378,1765489865714,-2286.95,0.00013424,2]
[398283379,1765489865724,-273.081058,0.00013424,2]
[398283380,1765489865734,-175.05469,0.00013424,2]
[398283381,1765489865744,-500.0,0.00013424,2]
[398283382,1765489865753,-500.0,0.00013424,2]